fUST/lending_fUST_20241202
["ID","MTS","AMOUNT","RATE_DAILY","PERIOD"]
[343944798,1733116243318,-500.0,0.00027167,2]
[343944799,1733116243327,-8075.83593237,0.00027168,2]
[343944800,1733116243337,-2286.27462686,0.00027296,2]
[343944801,1733116243346,-370.96155021,0.00027373,2]
[343944802,1733116243356,-501.66591331,0.00027373,2]
[343944803,1733116243365,-500.46951395,0.00027373,2]
[343944804,1733116243374,-324.0,0.00027386,2]
[343944805,1733116243383,-788.78,0.00027387,10]
[343944806,1733116243393,-657.31,0.00027387,10]
[343944807,1733116243402,-500.0,0.00027397,7]
[343944808,1733116243412,-500.0,0.00027397,7]
[343944809,1733116243421,-500.0,0.00027397,7]
[343944810,1733116243430,-500.0,0.00027397,7]
[343944811,1733116243439,-500.0,0.00027397,7]
[343944812,1733116243449,-500.0,0.00027397,7]
[343944813,1733116243458,-476.12788319,0.00027397,7]
[343944814,1733116243467,-500.0,0.00027397,7]
[343944815,1733116243476,-500.0,0.00027397,7]
[343944816,1733116243485,-500.0,0.00027397,7]
[343944817,1733116243495,-500.0,0.00027397,7]
[343944818,1733116243506,-470.45312619,0.00027397,7]
[343944819,1733116243515,-500.0,0.00027397,7]
[343944820,1733116243524,-500.0,0.00027397,7]
[343944821,1733116243533,-500.0,0.00027397,7]
[343944822,1733116243543,-500.0,0.00027397,7]
[343944823,1733116243552,-500.0,0.00027397,7]
[343944824,1733116243562,-304.51748852,0.00027397,7]
[343944825,1733116243571,-500.0,0.00027397,7]
[343944826,1733116243580,-500.0,0.00027397,7]
[343944827,1733116243590,-500.0,0.00027397,7]
[343944828,1733116243696,-214.96402705,0.00027397,7]
[343944829,1733116243706,-500.0,0.00027397,7]
[343944830,1733116243716,-500.0,0.00027397,7]
[343944831,1733116243725,-500.0,0.00027397,7]
[343944832,1733116243735,-500.0,0.00027397,7]
[343944833,1733116243745,-500.0,0.00027397,7]
[343944834,1733116243756,-500.0,0.00027397,7]
[343944835,1733116243766,-500.0,0.00027397,7]
[343944836,1733116243776,-500.0,0.00027397,7]
[343944837,1733116243786,-500.0,0.00027397,7]
[343944838,1733116243795,-500.0,0.00027397,7]
[343944839,1733116243805,-500.0,0.00027397,7]
[343944840,1733116243814,-500.0,0.00027397,7]
[343944841,1733116243824,-500.0,0.00027397,7]
[343944842,1733116243835,-500.0,0.00027397,7]
[343944843,1733116243847,-500.0,0.00027397,7]
[343944844,1733116243856,-223.17952306,0.00027397,7]
[343944845,1733116243866,-500.0,0.00027397,7]
[343944846,1733116243877,-500.0,0.00027397,7]
[343944847,1733116243886,-500.0,0.00027397,7]
[343944848,1733116243895,-500.0,0.00027397,7]
[343944849,1733116243905,-500.0,0.00027397,7]
[343944850,1733116243917,-500.0,0.00027397,7]
[343944851,1733116243927,-602.31056514,0.00027397,7]
[343944852,1733116243936,-500.0,0.00027397,7]
[343944853,1733116243946,-500.0,0.00027397,7]
[343944854,1733116243956,-500.0,0.00027397,7]
[343944855,1733116243967,-473.09418161,0.00027397,7]
[343944856,1733116243976,-500.0,0.00027397,7]
[343944857,1733116243985,-500.0,0.00027397,7]
[343944858,1733116243995,-500.0,0.00027397,7]
[343944859,1733116244004,-500.0,0.00027397,7]
[343944860,1733116244013,-500.0,0.00027397,7]
[343944861,1733116244023,-500.0,0.00027397,7]
[343944862,1733116244033,-500.0,0.00027397,7]
[343944863,1733116244042,-500.0,0.00027397,7]
[343944864,1733116244052,-638.69,0.00027397,7]
[343944865,1733116244062,-500.0,0.00027397,7]
[343944866,1733116244071,-500.0,0.00027397,7]
[343944867,1733116244081,-500.0,0.00027397,7]
[343944868,1733116244090,-500.0,0.00027397,7]
[343944869,1733116244099,-500.0,0.00027397,7]
[343944870,1733116244109,-1288.57,0.00027397,7]
[343944871,1733116244118,-500.0,0.00027397,7]
[343944872,1733116244127,-500.0,0.00027397,7]
[343944873,1733116244137,-492.25371302,0.00027397,7]
[343944874,1733116244147,-500.0,0.00027397,7]
[343944875,1733116244156,-500.0,0.00027397,7]
[343944876,1733116244167,-500.0,0.00027397,7]
[343944877,1733116244177,-1081.17,0.00027397,7]
[343944878,1733116244186,-500.0,0.00027397,7]
[343944879,1733116244195,-500.0,0.00027397,7]
[343944880,1733116244204,-500.0,0.00027397,7]
[343944881,1733116244213,-500.0,0.00027397,7]
[343944882,1733116244222,-500.0,0.00027397,7]
[343944883,1733116244232,-2758.73,0.00027397,7]
[343944884,1733116244241,-500.0,0.00027397,7]
[343944885,1733116244251,-500.0,0.00027397,7]
[343944886,1733116244260,-500.0,0.00027397,7]
[343944887,1733116244270,-500.80920012,0.00027397,7]
[343944888,1733116244279,-651.46,0.00027397,7]
[343944889,1733116244289,-500.0,0.00027397,2]
[343944890,1733116244298,-500.0,0.00027397,7]
[343944891,1733116244307,-500.0,0.00027397,7]
[343944892,1733116244316,-500.0,0.00027397,7]
[343944893,1733116244325,-18997.92,0.00027397,7]
[343944894,1733116244334,-541.38,0.00027397,7]
[343944895,1733116244344,-500.0,0.00027397,7]
[343944896,1733116244353,-500.0,0.00027397,7]
[343944897,1733116244362,-500.0,0.00027397,7]
[343944898,1733116244373,-500.0,0.00027397,7]
[343944899,1733116244383,-941.98,0.00027397,7]
[343944900,1733116244392,-500.0,0.00027397,7]
[343944901,1733116244403,-168.12269679,0.00027397,2]
[343944902,1733116244414,-753.83,0.000274,2]
[343944903,1733116244424,-321.61981378,0.00027499,2]
[343944904,1733116244433,-202.88428565,0.00027499,2]
[343944905,1733116244443,-188.24202864,0.00027499,2]
[343944906,1733116244452,-882.78,0.000275,31]
[343944907,1733116244462,-882.78,0.000275,31]
[343944908,1733116244472,-882.78,0.000275,31]
[343944909,1733116244481,-882.78,0.000275,31]
[343944910,1733116244490,-882.78,0.000275,31]
[343944911,1733116244499,-882.78,0.000275,31]
[343944912,1733116244508,-882.78,0.000275,31]
[343944913,1733116244518,-882.78,0.000275,31]
[343944914,1733116244527,-882.78,0.000275,31]
[343944915,1733116244536,-882.78,0.000275,31]
[343944916,1733116244546,-882.78,0.000275,31]
[343944917,1733116244555,-882.78,0.000275,31]
[343944918,1733116244564,-324.0,0.00027616,2]
[343944919,1733116244574,-500.0,0.00027671,7]
[343944920,1733116244584,-252.49806076,0.00027671,7]
[343944921,1733116244593,-505.55736338,0.00027671,7]
[343944922,1733116244603,-500.0,0.00027671,7]
[343944923,1733116244613,-598.30288675,0.00027671,7]
[343944924,1733116244622,-500.0,0.00027671,7]
[343944925,1733116244632,-500.0,0.00027671,7]
[343944926,1733116244641,-500.0,0.00027671,7]
[343944927,1733116244651,-500.0,0.00027671,7]
[343944928,1733116244663,-500.0,0.00027671,7]
[343944929,1733116244674,-500.0,0.00027671,7]
[343944930,1733116244684,-500.0,0.00027671,7]
[343944931,1733116244695,-500.0,0.00027671,7]
[343944932,1733116244705,-500.0,0.00027671,7]
[343944933,1733116244715,-500.0,0.00027671,7]
[343944934,1733116244725,-500.0,0.00027671,7]
[343944935,1733116244735,-500.0,0.00027671,7]
[343944936,1733116244746,-500.0,0.00027671,7]
[343944937,1733116244756,-500.0,0.00027671,7]
[343944938,1733116244766,-500.0,0.00027671,7]
[343944939,1733116244775,-500.0,0.00027671,7]
[343944940,1733116244785,-500.0,0.00027671,7]
[343944941,1733116244794,-500.0,0.00027671,7]
[343944942,1733116244804,-268.85419101,0.00027671,7]
[343944943,1733116244814,-500.0,0.00027671,7]
[343944944,1733116244823,-500.0,0.00027671,7]
[343944945,1733116244837,-500.0,0.00027671,7]
[343944946,1733116244846,-500.0,0.00027671,7]
[343944947,1733116244856,-500.0,0.00027671,7]
[343944948,1733116244866,-500.0,0.00027671,7]
[343944949,1733116244876,-500.0,0.00027671,7]
[343944950,1733116244886,-500.0,0.00027671,7]
[343944951,1733116244896,-509.08941307,0.00027671,7]
[343944952,1733116244908,-500.0,0.00027671,7]
[343944953,1733116244920,-500.0,0.00027671,7]
[343944954,1733116244930,-500.0,0.00027671,7]
[343944955,1733116244940,-500.0,0.00027671,7]
[343944956,1733116244950,-500.0,0.00027671,7]
[343944957,1733116244959,-500.0,0.00027671,7]
[343944958,1733116244969,-500.0,0.00027671,7]
[343944959,1733116244978,-500.0,0.00027671,7]
[343944960,1733116244988,-500.0,0.00027671,7]
[343944961,1733116244998,-500.0,0.00027671,7]
[343944962,1733116245008,-500.0,0.00027671,7]
[343944963,1733116245018,-500.0,0.00027671,7]
[343944964,1733116245028,-500.0,0.00027671,7]
[343944965,1733116245038,-500.0,0.00027671,7]
[343944966,1733116245048,-638.69,0.00027671,7]
[343944967,1733116245057,-500.0,0.00027671,7]
[343944968,1733116245067,-500.0,0.00027671,7]
[343944969,1733116245076,-500.0,0.00027671,7]
[343944970,1733116245085,-500.0,0.00027671,7]
[343944971,1733116245095,-1288.57,0.00027671,7]
[343944972,1733116245104,-500.0,0.00027671,7]
[343944973,1733116245114,-500.0,0.00027671,7]
[343944974,1733116245123,-500.0,0.00027671,7]
[343944975,1733116245133,-500.0,0.00027671,7]
[343944976,1733116245142,-500.0,0.00027671,7]
[343944977,1733116245152,-500.0,0.00027671,7]
[343944978,1733116245163,-1081.17,0.00027671,7]
[343944979,1733116245172,-543.27068408,0.00027671,7]
[343944980,1733116245181,-500.0,0.00027671,7]
[343944981,1733116245190,-500.0,0.00027671,7]
[343944982,1733116245199,-500.0,0.00027671,7]
[343944983,1733116245209,-500.0,0.00027671,7]
[343944984,1733116245218,-2758.73,0.00027671,7]
[343944985,1733116245227,-582.30081029,0.00027671,7]
[343944986,1733116245236,-500.0,0.00027671,7]
[343944987,1733116245245,-651.46,0.00027671,7]
[343944988,1733116245255,-500.0,0.00027671,7]
[343944989,1733116245264,-166.28584687,0.00027671,7]
[343944990,1733116245274,-18997.92,0.00027671,7]
[343944991,1733116245283,-500.0,0.00027671,7]
[343944992,1733116245293,-541.38,0.00027671,7]
[343944993,1733116245303,-500.0,0.00027671,7]
[343944994,1733116245313,-500.0,0.00027671,7]
[343944995,1733116245323,-500.0,0.00027671,7]
[343944996,1733116245332,-500.0,0.00027671,7]
[343944997,1733116245341,-941.98,0.00027671,7]
[343944998,1733116245351,-150.195,0.00027826,2]
[343944999,1733116245360,-150.0,0.00027826,2]
[343945000,1733116245370,-150.0,0.00027826,2]
[343945001,1733116245379,-655.156,0.00027826,2]
[343945002,1733116245388,-2173.0,0.00027826,2]
[343945003,1733116245398,-2376.0,0.00027826,2]
[343945004,1733116245408,-609.79,0.00027888,15]
[343945006,1733116245419,-300.0,0.00027945,120]
[343945008,1733116245429,-501.97706342,0.00027945,7]
[343945009,1733116245438,-500.0,0.00027945,7]
[343945010,1733116245448,-500.0,0.00027945,7]
[343945011,1733116245457,-500.0,0.00027945,7]
[343945012,1733116245467,-500.0,0.00027945,7]
[343945013,1733116245477,-500.0,0.00027945,7]
[343945014,1733116245487,-500.0,0.00027945,7]
[343945015,1733116245496,-500.0,0.00027945,7]
[343945016,1733116245505,-500.0,0.00027945,7]
[343945017,1733116245515,-500.0,0.00027945,7]
[343945018,1733116245525,-500.0,0.00027945,7]
[343945020,1733116245535,-500.0,0.00027945,7]
[343945022,1733116245545,-500.0,0.00027945,7]
[343945024,1733116245554,-500.0,0.00027945,7]
[343945025,1733116245564,-204.510656,0.00027945,7]
[343945027,1733116245574,-500.0,0.00027945,7]
[343945028,1733116245584,-500.0,0.00027945,7]
[343945029,1733116245593,-500.0,0.00027945,7]
[343945030,1733116245603,-500.0,0.00027945,7]
[343945031,1733116245613,-500.0,0.00027945,7]
[343945032,1733116245622,-500.0,0.00027945,7]
[343945033,1733116245631,-151.0,0.00027945,7]
[343945034,1733116245641,-500.0,0.00027945,7]
[343945035,1733116245651,-500.0,0.00027945,7]
[343945036,1733116245662,-500.0,0.00027945,7]
[343945037,1733116245672,-500.0,0.00027945,7]
[343945038,1733116245682,-376.73840756,0.00027945,7]
[343945039,1733116245692,-151.900834,0.00027945,7]
[343945040,1733116245703,-151.0,0.00027945,7]
[343945042,1733116245713,-151.0,0.00027945,7]
[343945043,1733116245723,-151.0,0.00027945,7]
[343945044,1733116245733,-218.74094884,0.00027945,7]
[343945045,1733116245743,-232.144353,0.00027945,7]
[343945046,1733116245753,-500.0,0.00027945,7]
[343945047,1733116245763,-151.0,0.00027945,7]
[343945048,1733116245773,-500.0,0.00027945,7]
[343945049,1733116245783,-207.808513,0.00027945,7]
[343945050,1733116245793,-500.0,0.00027945,7]
[343945051,1733116245803,-500.0,0.00027945,7]
[343945052,1733116245812,-151.0,0.00027945,7]
[343945053,1733116245822,-500.0,0.00027945,7]
[343945054,1733116245832,-167.287492,0.00027945,7]
[343945055,1733116245846,-500.0,0.00027945,7]
[343945056,1733116245856,-174.117131,0.00027945,7]
[343945057,1733116245865,-500.0,0.00027945,7]
[343945058,1733116245876,-500.0,0.00027945,7]
[343945059,1733116245886,-500.0,0.00027945,7]
[343945060,1733116245895,-500.0,0.00027945,7]
[343945061,1733116245904,-500.0,0.00027945,7]
[343945062,1733116245916,-500.0,0.00027945,7]
[343945063,1733116245926,-500.0,0.00027945,7]
[343945065,1733116246012,-507.6106548,0.00027945,7]
[343945066,1733116246023,-638.69,0.00027945,7]
[343945067,1733116246032,-500.0,0.00027945,7]
[343945068,1733116246042,-500.0,0.00027945,7]
[343945069,1733116246051,-500.0,0.00027945,7]
[343945070,1733116246061,-500.0,0.00027945,7]
[343945071,1733116246071,-1288.57,0.00027945,7]
[343945072,1733116246080,-500.0,0.00027945,7]
[343945073,1733116246090,-500.0,0.00027945,7]
[343945074,1733116246099,-500.0,0.00027945,7]
[343945075,1733116246109,-1081.17,0.00027945,7]
[343945076,1733116246119,-151.0,0.00027945,7]
[343945077,1733116246128,-500.0,0.00027945,7]
[343945078,1733116246138,-500.0,0.00027945,7]
[343945079,1733116246148,-500.0,0.00027945,7]
[343945080,1733116246157,-2758.73,0.00027945,7]
[343945081,1733116246167,-651.46,0.00027945,7]
[343945082,1733116246177,-580.63364667,0.00027945,7]
[343945083,1733116246186,-18997.92,0.00027945,7]
[343945084,1733116246196,-500.0,0.00027945,7]
[343945085,1733116246205,-541.38,0.00027945,7]
[343945086,1733116246215,-500.0,0.00027945,7]
[343945087,1733116246225,-500.0,0.00027945,7]
[343945088,1733116246234,-151.0,0.00027945,7]
[343945089,1733116246243,-500.0,0.00027945,7]
[343945090,1733116246253,-941.98,0.00027945,7]
[343945091,1733116246262,-225.560632,0.00027945,7]
[343945092,1733116246271,-225.560632,0.00027945,7]
[343945093,1733116246281,-500.0,0.00027973,5]
[343945094,1733116246290,-219.53023131,0.00027973,2]
[343945095,1733116246300,-32883.44442073,0.00028,10]
[343945096,1733116246309,-3646.50298528,0.00028,2]
[343945097,1733116246318,-28166.32831549,0.00028,2]
[343945098,1733116246327,-1034.09715458,0.00028,7]
[343945099,1733116246337,-3516.54790656,0.00028,60]
[343945100,1733116246346,-301.770842,0.00028,7]
[343945101,1733116246355,-301.770842,0.00028,7]
[343945102,1733116246364,-151.0,0.00028,7]
[343945103,1733116246374,-151.0,0.00028,7]
[343945104,1733116246383,-257.820783,0.00028,7]
[343945105,1733116246392,-174.148814,0.00028,7]
[343945106,1733116246402,-207.55,0.00028,7]
[343945107,1733116246411,-207.55,0.00028,7]
[343945108,1733116246423,-151.0,0.00028,7]
[343945109,1733116246432,-151.0,0.00028,7]
[343945110,1733116246442,-151.0,0.00028,7]
[343945111,1733116246451,-151.0,0.00028,7]
[343945112,1733116246461,-151.0,0.00028,7]
[343945113,1733116246471,-153.269555,0.00028,7]
[343945114,1733116246481,-151.0,0.00028,7]
[343945115,1733116246491,-653.990839,0.00028,7]
[343945116,1733116246501,-653.990839,0.00028,7]
[343945117,1733116246510,-153.221396,0.00028,7]
[343945118,1733116246519,-153.221396,0.00028,7]
[343945119,1733116246528,-222.147938,0.00028,7]
[343945120,1733116246538,-151.0,0.00028,7]
[343945121,1733116246548,-151.0,0.00028,7]
[343945122,1733116246557,-151.0,0.00028,7]
[343945123,1733116246567,-171.595739,0.00028,7]
[343945124,1733116246576,-151.0,0.00028,7]
[343945125,1733116246586,-152.466505,0.00028,7]
[343945126,1733116246596,-225.560632,0.00028,7]
[343945127,1733116246605,-225.560632,0.00028,7]
[343945128,1733116246615,-924.0,0.000281,2]
[343945129,1733116246624,-185.65086807,0.00028119,3]
[343945130,1733116246634,-342.83651216,0.000282,2]
[343945131,1733116246644,-882.78,0.000282,31]
[343945132,1733116246654,-882.78,0.000282,31]
[343945133,1733116246664,-226.5956866,0.000282,31]
[343945134,1733116246709,-29.28692677,0.000282,31]
[343945135,1733116246776,-221.12020654,0.00027026,2]
[343945136,1733116246787,-626.89738663,0.000282,31]
[343945137,1733116246796,-882.78,0.000282,31]
[343945138,1733116246806,-882.78,0.000282,31]
[343945139,1733116246815,-882.78,0.000282,31]
[343945140,1733116246825,-882.78,0.000282,31]
[343945141,1733116246839,-882.78,0.000282,31]
[343945142,1733116246849,-882.78,0.000282,31]
[343945143,1733116246859,-882.78,0.000282,31]
[343945144,1733116246868,-267.92240683,0.000282,31]
[343945152,1733117081194,174.84931,0.00013973,2]
[343945153,1733117234116,-251.70465464,0.0002,2]
[343945154,1733117243096,-1198.96123916,0.0002,2]
[343945155,1733117243119,-161.0,0.00022,2]
[343945156,1733117243143,-161.0,0.00022,2]
[343945157,1733117243167,-302.69733596,0.00025,2]
[343945158,1733117243188,-160.0,0.00026262,2]
[343945159,1733117243211,-184.0,0.00027,2]
[343945160,1733117243234,-167.90609009,0.00027297,2]
[343945161,1733117243256,-500.0,0.00027373,2]
[343945162,1733117243277,-300.0,0.00027394,2]
[343945163,1733117243299,-300.0,0.00027395,2]
[343945164,1733117243322,-263.19397942,0.00027396,16]
[343945165,1733117243346,-500.0,0.00027396,2]
[343945166,1733117243368,-500.0,0.00027396,2]
[343945167,1733117243390,-500.0,0.00027396,2]
[343945168,1733117243412,-538.13960655,0.00027396,2]
[343945169,1733117243435,-500.0,0.00027396,2]
[343945170,1733117243465,-500.0,0.00027396,2]
[343945171,1733117243489,-500.0,0.00027396,2]
[343945172,1733117243512,-500.0,0.00027396,2]
[343945173,1733117243535,-500.0,0.00027396,2]
[343945174,1733117243556,-500.0,0.00027396,2]
[343945175,1733117243578,-500.0,0.00027396,2]
[343945176,1733117243601,-500.0,0.00027396,2]
[343945177,1733117243622,-500.0,0.00027396,2]
[343945178,1733117243644,-315.30514378,0.00027396,2]
[343945179,1733117243665,-500.0,0.00027396,2]
[343945180,1733117243687,-500.0,0.00027396,2]
[343945181,1733117243709,-500.0,0.00027396,2]
[343945182,1733117243731,-500.0,0.00027396,2]
[343945183,1733117243756,-221.12020654,0.00027397,2]
[343945184,1733117243778,-595.40261842,0.00027397,7]
[343945185,1733117243799,-500.0,0.00027397,7]
[343945186,1733117243820,-500.0,0.00027397,7]
[343945187,1733117243842,-500.0,0.00027397,7]
[343945188,1733117243863,-500.0,0.00027397,7]
[343945189,1733117243885,-531.05170261,0.00027397,7]
[343945190,1733117243907,-500.0,0.00027397,7]
[343945191,1733117243929,-500.0,0.00027397,7]
[343945192,1733117243952,-500.0,0.00027397,7]
[343945193,1733117243975,-500.0,0.00027397,7]
[343945194,1733117243997,-500.0,0.00027397,7]
[343945195,1733117244019,-355.98523206,0.00027397,7]
[343945196,1733117336261,160.0,0.00026,60]
[343945204,1733117350159,-282.28120848,0.000232,2]
[343945205,1733117350185,-774.93,0.0002499,10]
[343945206,1733117350209,-300.0,0.00024999,2]
[343945207,1733117350237,-3299.21558049,0.00025,2]
[343945252,1733117432038,-300.0,0.00024999,2]
[343945254,1733117432048,-300.0,0.00024999,2]
[343945256,1733117432057,-305.256376,0.00025,2]
[343945258,1733117432069,-607.0,0.00025,2]
[343945259,1733117432189,-7983.84597298,0.00025,2]
[343945273,1733117438741,-27.96718385,0.0002499,10]
[343945274,1733117438754,-617.80281615,0.0002499,10]
[343945275,1733117438763,-225.13386965,0.00024999,2]
[343945276,1733117438772,-261.49386115,0.00024999,2]
[343945277,1733117438782,-500.0,0.00024999,2]
[343945278,1733117438791,-221.12020654,0.00025,2]
[343945279,1733117438801,-9706.94124666,0.00025,2]
[343945280,1733117438816,-14512.36036,0.00025,2]
[343945281,1733117438827,-34798.2579557,0.00025,2]
[343945298,1733117443195,-3454.53019306,0.00025,2]
[343945340,1733117902973,174.84931,0.00013973,2]
[343945343,1733118433143,-300.0,0.00023996,2]
[343945344,1733118433168,-11450.4521407,0.00023997,2]
[343945345,1733118433191,-167.90609009,0.000249,2]
[343945346,1733118433213,-501.87843157,0.00024973,2]
[343945347,1733118433236,-538.14,0.0002499,10]
[343945348,1733118433260,-448.45,0.0002499,10]
[343945349,1733118433283,-373.71,0.0002499,10]
[343945350,1733118433309,-500.0,0.00024999,2]
[343945351,1733118433332,-215.29944769,0.00024999,2]
[343945352,1733118433357,-18995.19905656,0.00025,2]
[343945353,1733118433380,-294.39453274,0.00025,2]
[343945354,1733118433402,-119799.84811314,0.00025,2]
[343945355,1733118433424,-302.78807257,0.00025,2]
[343945356,1733118433447,-277.0,0.000255,2]
[343945357,1733118433469,-4940.17182201,0.00026,30]
[343945358,1733118433494,-300.0,0.000265,2]
[343945359,1733118433519,-161.0,0.00027,2]
[343945360,1733118433541,-4755.03807358,0.00027235,2]
[343945361,1733118433565,-500.0,0.00027373,2]
[343945362,1733118433589,-177.94034438,0.00027373,2]
[343945363,1733118433614,-500.0,0.00027373,2]
[343945364,1733118433636,-161.42563826,0.00027373,2]
[343945365,1733118433659,-253.89271135,0.00027396,2]
[343945366,1733118433682,-501.600459,0.00027396,7]
[343945367,1733118433704,-200.0,0.00027397,7]
[343945368,1733118433726,-500.0,0.00027397,7]
[343945369,1733118433748,-500.0,0.00027397,7]
[343945370,1733118433770,-500.0,0.00027397,7]
[343945371,1733118433793,-500.0,0.00027397,7]
[343945372,1733118433815,-500.0,0.00027397,7]
[343945373,1733118433836,-500.0,0.00027397,7]
[343945374,1733118433860,-500.0,0.00027397,7]
[343945375,1733118433887,-500.0,0.00027397,7]
[343945376,1733118433909,-500.0,0.00027397,7]
[343945377,1733118433931,-500.0,0.00027397,7]
[343945378,1733118433958,-500.0,0.00027397,7]
[343945379,1733118433993,-646.09304333,0.00027397,7]
[343945380,1733118434016,-500.0,0.00027397,7]
[343945381,1733118434038,-500.0,0.00027397,7]
[343945382,1733118434059,-500.0,0.00027397,7]
[343945383,1733118434081,-500.0,0.00027397,7]
[343945384,1733118434105,-500.0,0.00027397,7]
[343945385,1733118434126,-500.0,0.00027397,7]
[343945386,1733118434148,-493.64046381,0.00027397,7]
[343945387,1733118434171,-500.0,0.00027397,7]
[343945388,1733118434196,-500.0,0.00027397,7]
[343945389,1733118434221,-151.0,0.00027397,7]
[343945390,1733118434245,-151.0,0.00027397,7]
[343945391,1733118434272,-151.0,0.00027397,7]
[343945392,1733118434296,-500.0,0.00027397,7]
[343945393,1733118434319,-151.0,0.00027397,7]
[343945394,1733118434438,-206.07243793,0.00027397,7]
[343945395,1733118434463,-500.0,0.00027397,7]
[343945396,1733118434488,-151.0,0.00027397,7]
[343945397,1733118434511,-151.0,0.00027397,7]
[343945398,1733118434534,-305.38168612,0.00027397,7]
[343945399,1733118434557,-153.432234,0.00027397,7]
[343945400,1733118434581,-500.0,0.00027397,7]
[343945401,1733118434604,-500.0,0.00027397,7]
[343945402,1733118434627,-151.0,0.00027397,7]
[343945403,1733118434656,-151.0,0.00027397,7]
[343945404,1733118434679,-500.0,0.00027397,7]
[343945405,1733118434701,-500.0,0.00027397,7]
[343945406,1733118434723,-641.22,0.00027397,7]
[343945407,1733118434761,-500.0,0.00027397,7]
[343945408,1733118434785,-500.0,0.00027397,7]
[343945409,1733118434807,-500.0,0.00027397,7]
[343945410,1733118434831,-500.0,0.00027397,7]
[343945411,1733118434854,-500.0,0.00027397,7]
[343945412,1733118434876,-500.0,0.00027397,7]
[343945413,1733118434898,-728.52301943,0.00027397,2]
[343945414,1733118434920,-500.0,0.00027397,7]
[343945415,1733118434942,-500.0,0.00027397,7]
[343945416,1733118434964,-500.0,0.00027397,7]
[343945417,1733118434986,-151.0,0.00027397,7]
[343945418,1733118435008,-151.0,0.00027397,7]
[343945419,1733118435029,-500.0,0.00027397,7]
[343945420,1733118435049,-500.0,0.00027397,2]
[343945421,1733118435070,-151.0,0.00027397,7]
[343945422,1733118435090,-151.0,0.00027397,7]
[343945423,1733118435115,-151.0,0.00027397,7]
[343945424,1733118435138,-151.0,0.00027397,7]
[343945425,1733118435160,-278.90483241,0.00027397,7]
[343945426,1733118435182,-500.0,0.00027397,7]
[343945427,1733118435203,-500.0,0.00027397,7]
[343945428,1733118435226,-151.0,0.00027397,7]
[343945429,1733118435249,-151.0,0.00027397,7]
[343945430,1733118435272,-151.0,0.00027397,7]
[343945431,1733118435293,-151.0,0.00027397,7]
[343945432,1733118435314,-500.0,0.00027397,7]
[343945433,1733118435339,-260.910262,0.00027397,7]
[343945434,1733118435366,-500.0,0.00027397,7]
[343945435,1733118435389,-500.0,0.00027397,7]
[343945436,1733118435412,-500.0,0.00027397,7]
[343945437,1733118435435,-398.07396865,0.00027397,7]
[343945438,1733118435457,-500.0,0.00027397,7]